fUSD/lending_fUSD_20250207
["ID","MTS","AMOUNT","RATE_DAILY","PERIOD"]
[352118306,1738954250911,-201.86,0.00016438,2]
[352118308,1738954250921,-579.55,0.00016438,2]
[352118310,1738954250930,-500.0,0.00016438,2]
[352118312,1738954250939,-500.0,0.00016438,2]
[352118314,1738954250949,-2422.28,0.00016438,2]
[352118316,1738954250959,-500.0,0.00016438,2]
[352118318,1738954250968,-500.0,0.00016438,2]
[352118320,1738954250977,-500.0,0.00016438,2]
[352118322,1738954250987,-503.15,0.00016438,2]
[352118324,1738954250996,-500.0,0.00016438,2]
[352118326,1738954251006,-201.00794845,0.00016438,2]
[352118328,1738954251015,-500.0,0.00016438,2]
[352118330,1738954251024,-763.77,0.00016438,2]
[352118332,1738954251033,-1436.75,0.00016438,2]
[352118334,1738954251043,-500.0,0.00016438,2]
[352118336,1738954251052,-500.0,0.00016438,2]
[352118338,1738954251066,-593.64,0.00016438,2]
[352118339,1738954251075,-3393.25,0.00016438,2]
[352118341,1738954251086,-500.0,0.00016438,2]
[352118344,1738954251096,-500.0,0.00016438,2]
[352118345,1738954251105,-500.0,0.00016438,2]
[352118347,1738954251115,-678.61,0.00016438,2]
[352118349,1738954251125,-500.0,0.00016438,2]
[352118351,1738954251135,-500.0,0.00016438,2]
[352118354,1738954251145,-500.0,0.00016438,2]
[352118355,1738954251154,-1599.93,0.00016438,2]
[352118357,1738954251164,-500.0,0.00016438,2]
[352118359,1738954251173,-1639.45,0.00016438,2]
[352118361,1738954251183,-2020.81,0.00016438,2]
[352118364,1738954251193,-617.89375013,0.00016438,2]
[352118365,1738954251202,-500.0,0.00016438,2]
[352118367,1738954251211,-500.0,0.00016438,2]
[352118369,1738954251220,-588.68,0.00016438,2]
[352118371,1738954251230,-1851.37,0.00016438,2]
[352118373,1738954251240,-500.0,0.00016438,2]
[352118375,1738954251249,-500.0,0.00016438,2]
[352118377,1738954251259,-500.0,0.00016438,2]
[352118379,1738954251268,-500.0,0.00016438,2]
[352118381,1738954251277,-979.61,0.00016438,2]
[352118383,1738954251286,-500.0,0.00016438,2]
[352118385,1738954251296,-939.23,0.00016438,2]
[352118387,1738954251305,-1127.7,0.00016438,2]
[352118389,1738954251318,-1951.41,0.00016438,2]
[352118391,1738954251327,-500.0,0.00016438,2]
[352118393,1738954251337,-500.0,0.00016438,2]
[352118395,1738954251346,-500.0,0.00016438,2]
[352118397,1738954251355,-1387.19,0.00016438,2]
[352118399,1738954251365,-500.0,0.00016438,2]
[352118401,1738954251375,-500.0,0.00016438,2]
[352118403,1738954251384,-505.10791133,0.00016438,2]
[352118405,1738954251394,-1403.74,0.00016438,2]
[352118407,1738954251403,-1102.72,0.00016438,2]
[352118409,1738954251413,-500.0,0.00016438,2]
[352118411,1738954251422,-3417.45,0.00016438,2]
[352118413,1738954251431,-500.0,0.00016438,2]
[352118415,1738954251440,-500.0,0.00016438,2]
[352118417,1738954251449,-500.0,0.00016438,2]
[352118419,1738954251459,-500.0,0.00016438,2]
[352118421,1738954251468,-500.0,0.00016438,2]
[352118423,1738954251478,-500.0,0.00016438,2]
[352118425,1738954251487,-500.0,0.00016438,2]
[352118427,1738954251496,-500.0,0.00016438,2]
[352118429,1738954251506,-500.0,0.00016438,2]
[352118431,1738954251515,-500.0,0.00016438,2]
[352118433,1738954251524,-1886.34,0.00016438,2]
[352118435,1738954251535,-500.0,0.00016438,2]
[352118437,1738954251544,-500.0,0.00016438,2]
[352118439,1738954251553,-500.0,0.00016438,2]
[352118441,1738954251566,-2173.1,0.00016438,2]
[352118443,1738954251575,-500.0,0.00016438,2]
[352118445,1738954251584,-500.0,0.00016438,2]
[352118447,1738954251593,-500.0,0.00016438,2]
[352118449,1738954251602,-500.0,0.00016438,2]
[352118451,1738954251611,-500.0,0.00016438,2]
[352118453,1738954251621,-500.0,0.00016438,2]
[352118455,1738954251629,-1588.29,0.00016438,2]
[352118457,1738954251639,-500.0,0.00016438,2]
[352118459,1738954251648,-1722.17,0.00016438,2]
[352118461,1738954251657,-1145.01,0.00016438,2]
[352118463,1738954251667,-1687.93,0.00016438,2]
[352118464,1738954251677,-500.0,0.00016438,2]
[352118467,1738954251686,-500.0,0.00016438,2]
[352118469,1738954251696,-512.91,0.00016438,2]
[352118471,1738954251705,-500.0,0.00016438,2]
[352118473,1738954251714,-523.1946238,0.00016438,2]
[352118475,1738954251724,-988.18,0.00016438,2]
[352118477,1738954251733,-500.0,0.00016438,2]
[352118479,1738954251742,-500.0,0.00016438,2]
[352118480,1738954251752,-500.0,0.00016438,2]
[352118483,1738954251765,-500.0,0.00016438,2]
[352118485,1738954251774,-630.97448025,0.00016438,2]
[352118486,1738954251784,-1012.02,0.00016438,2]
[352118488,1738954251793,-500.0,0.00016438,2]
[352118491,1738954251804,-500.0,0.00016438,2]
[352118493,1738954251818,-1105.4,0.00016438,2]
[352118495,1738954251828,-2217.33,0.00016438,2]
[352118497,1738954251838,-259.1775182,0.00016438,2]
[352118499,1738954251849,-1396.71,0.00016438,2]
[352118501,1738954251858,-507.46,0.00016438,2]
[352118503,1738954251868,-2053.81,0.00016438,2]
[352118505,1738954251877,-500.0,0.00016438,2]
[352118507,1738954251886,-500.0,0.00016438,2]
[352118509,1738954251896,-1203.81,0.00016438,2]
[352118511,1738954251905,-1136.86,0.00016438,2]
[352118513,1738954251915,-462.38062609,0.00016438,2]
[352118515,1738954251925,-500.0,0.00016438,2]
[352118517,1738954251934,-500.0,0.00016438,2]
[352118519,1738954251943,-3821.91,0.00016438,2]
[352118521,1738954251952,-2539.62,0.00016438,2]
[352118522,1738954251962,-500.0,0.00016438,2]
[352118525,1738954251971,-500.0,0.00016438,2]
[352118526,1738954251980,-500.0,0.00016438,2]
[352118528,1738954251990,-4416.19,0.00016438,2]
[352118530,1738954251999,-1142.6,0.00016438,2]
[352118532,1738954252009,-2844.23,0.00016438,2]
[352118534,1738954252018,-500.0,0.00016438,2]
[352118536,1738954252027,-500.0,0.00016438,2]
[352118538,1738954252037,-2134.0,0.00016438,2]
[352118540,1738954252047,-500.0,0.00016438,2]
[352118542,1738954252056,-500.0,0.00016438,2]
[352118544,1738954252068,-2662.04,0.00016438,2]
[352118546,1738954252078,-500.0,0.00016438,2]
[352118548,1738954252088,-500.0,0.00016438,2]
[352118550,1738954252097,-560.8816589,0.00016438,2]
[352118552,1738954252107,-500.0,0.00016438,2]
[352118554,1738954252116,-3018.12,0.00016438,2]
[352118556,1738954252125,-500.0,0.00016438,2]
[352118558,1738954252134,-3136.92,0.00016438,2]
[352118560,1738954252144,-500.0,0.00016438,2]
[352118562,1738954252155,-2242.65,0.00016438,2]
[352118564,1738954252164,-500.0,0.00016438,2]
[352118566,1738954252173,-746.69,0.00016438,2]
[352118568,1738954252183,-500.0,0.00016438,2]
[352118570,1738954252192,-500.0,0.00016438,2]
[352118572,1738954252202,-500.0,0.00016438,2]
[352118574,1738954252211,-761.42,0.00016438,2]
[352118576,1738954252221,-500.0,0.00016438,2]
[352118578,1738954252231,-500.0,0.00016438,2]
[352118580,1738954252240,-500.0,0.00016438,2]
[352118582,1738954252249,-2871.04,0.00016438,2]
[352118584,1738954252259,-503.79556908,0.00016438,2]
[352118586,1738954252269,-1868.54,0.00016438,2]
[352118588,1738954252278,-500.0,0.00016438,2]
[352118590,1738954252287,-500.0,0.00016438,2]
[352118592,1738954252296,-500.0,0.00016438,2]
[352118594,1738954252306,-500.0,0.00016438,2]
[352118596,1738954252317,-500.0,0.00016438,2]
[352118598,1738954252326,-500.0,0.00016438,2]
[352118600,1738954252335,-2115.56,0.00016438,2]
[352118601,1738954252345,-794.37,0.00016438,2]
[352118602,1738954252355,-500.0,0.00016438,2]
[352118603,1738954252364,-500.0,0.00016438,2]
[352118604,1738954252374,-1032.14,0.00016438,2]
[352118605,1738954252383,-500.0,0.00016438,2]
[352118606,1738954252393,-628.33,0.00016438,2]
[352118607,1738954252403,-500.0,0.00016438,2]
[352118608,1738954252413,-500.0,0.00016438,2]
[352118609,1738954252422,-2562.32,0.00016438,2]
[352118610,1738954252432,-500.0,0.00016438,2]
[352118611,1738954252442,-500.0,0.00016438,2]
[352118612,1738954252451,-2457.95,0.00016438,2]
[352118613,1738954252461,-2882.62,0.00016438,2]
[352118614,1738954252470,-500.0,0.00016438,2]
[352118615,1738954252480,-374.21631636,0.00016438,2]
[352118616,1738954252490,-500.0,0.00016438,2]
[352118617,1738954252501,-2324.68,0.00016438,2]
[352118618,1738954252511,-1724.56,0.00016438,2]
[352118619,1738954252521,-1592.23,0.00016438,2]
[352118620,1738954252531,-500.0,0.00016438,2]
[352118621,1738954252541,-500.0,0.00016438,2]
[352118622,1738954252550,-500.96885743,0.00016438,2]
[352118623,1738954252559,-500.0,0.00016438,2]
[352118624,1738954252569,-500.0,0.00016438,2]
[352118625,1738954252579,-500.0,0.00016438,2]
[352118626,1738954252588,-1999.87,0.00016438,2]
[352118627,1738954252598,-500.0,0.00016438,2]
[352118628,1738954252608,-3722.36,0.00016438,2]
[352118632,1738954252773,-500.0,0.00016438,2]
[352118633,1738954252782,-500.0,0.00016438,2]
[352118634,1738954252791,-500.0,0.00016438,2]
[352118635,1738954252802,-939.59,0.00016438,2]
[352118636,1738954252813,-500.0,0.00016438,2]
[352118637,1738954252823,-500.0,0.00016438,2]
[352118638,1738954252833,-500.0,0.00016438,2]
[352118639,1738954252843,-555.09,0.00016438,2]
[352118640,1738954252853,-688.56,0.00016438,2]
[352118641,1738954252863,-500.0,0.00016438,2]
[352118642,1738954252872,-4301.29,0.00016438,2]
[352118643,1738954252883,-500.0,0.00016438,2]
[352118644,1738954252893,-566.82350124,0.00016438,2]
[352118645,1738954252902,-500.0,0.00016438,2]
[352118646,1738954252912,-500.0,0.00016438,2]
[352118647,1738954252921,-8091.03,0.00016438,2]
[352118648,1738954252931,-500.0,0.00016438,2]
[352118649,1738954252941,-500.0,0.00016438,2]
[352118650,1738954252951,-500.0,0.00016438,2]
[352118651,1738954252960,-1931.31,0.00016438,2]
[352118652,1738954252970,-3008.63,0.00016438,2]
[352118653,1738954252979,-500.0,0.00016438,2]
[352118655,1738954252989,-578.93172784,0.00016438,2]
[352118657,1738954252998,-500.0,0.00016438,2]
[352118659,1738954253007,-500.0,0.00016438,2]
[352118661,1738954253016,-4799.9,0.00016438,2]
[352118663,1738954253026,-714.62,0.00016438,2]
[352118665,1738954253036,-500.0,0.00016438,2]
[352118667,1738954253045,-11062.58,0.00016438,2]
[352118669,1738954253054,-500.0,0.00016438,2]
[352118670,1738954253066,-3077.94,0.00016438,2]
[352118672,1738954253076,-500.0,0.00016438,2]
[352118675,1738954253086,-500.0,0.00016438,2]
[352118677,1738954253097,-569.77609949,0.00016438,2]
[352118679,1738954253106,-500.0,0.00016438,2]
[352118681,1738954253115,-500.0,0.00016438,2]
[352118683,1738954253125,-500.0,0.00016438,2]
[352118685,1738954253134,-500.0,0.00016438,2]
[352118687,1738954253143,-500.0,0.00016438,2]
[352118689,1738954253153,-500.0,0.00016438,2]
[352118690,1738954253162,-500.0,0.00016438,2]
[352118692,1738954253172,-1622.59,0.00016438,2]
[352118694,1738954253181,-4426.18,0.00016438,2]
[352118696,1738954253190,-500.0,0.00016438,2]
[352118698,1738954253199,-4792.44,0.00016438,2]
[352118700,1738954253208,-500.0,0.00016438,2]
[352118702,1738954253218,-500.0,0.00016438,2]
[352118704,1738954253227,-330.11465523,0.00016438,2]
[352118706,1738954253237,-4655.61,0.00016438,2]
[352118708,1738954253246,-500.0,0.00016438,2]
[352118710,1738954253256,-500.0,0.00016438,2]
[352118712,1738954253265,-466.51363151,0.00016438,2]
[352118714,1738954253274,-500.0,0.00016438,2]
[352118716,1738954253284,-496.52094225,0.00016438,2]
[352118718,1738954253293,-3041.6,0.00016438,2]
[352118720,1738954253303,-500.0,0.00016438,2]
[352118722,1738954253314,-500.0,0.00016438,2]
[352118724,1738954253324,-1391.31,0.00016438,2]
[352118726,1738954253334,-1807.5,0.00016438,2]
[352118728,1738954253343,-500.0,0.00016438,2]
[352118730,1738954253353,-500.0,0.00016438,2]
[352118732,1738954253362,-500.0,0.00016438,2]
[352118734,1738954253372,-500.0,0.00016438,2]
[352118736,1738954253381,-500.0,0.00016438,2]
[352118738,1738954253391,-6145.27,0.00016438,2]
[352118740,1738954253401,-2021.92,0.00016438,2]
[352118742,1738954253410,-1988.48,0.00016438,2]
[352118744,1738954253419,-500.0,0.00016438,2]
[352118746,1738954253428,-2200.6,0.00016438,2]
[352118748,1738954253437,-412.50036655,0.00016438,2]
[352118750,1738954253446,-500.0,0.00016438,2]
[352118752,1738954253455,-500.0,0.00016438,2]
[352118754,1738954253464,-500.0,0.00016438,2]
[352118755,1738954253474,-500.0,0.00016438,2]
[352118757,1738954253483,-500.0,0.00016438,2]
[352118759,1738954253492,-500.0,0.00016438,2]
[352118762,1738954253502,-1354.78,0.00016438,2]
[352118763,1738954253512,-500.0,0.00016438,2]
[352118766,1738954253522,-500.0,0.00016438,2]
[352118767,1738954253532,-500.0,0.00016438,2]
[352118769,1738954253542,-506.45390887,0.00016438,2]
[352118771,1738954253551,-4476.64,0.00016438,2]
[352118773,1738954253561,-500.0,0.00016438,2]
[352118775,1738954253571,-500.0,0.00016438,2]
[352118778,1738954253580,-501.20542162,0.00016438,2]
[352118779,1738954253590,-5235.44,0.00016438,2]
[352118781,1738954253599,-500.0,0.00016438,2]
[352118783,1738954253609,-500.0,0.00016438,2]
[352118786,1738954253619,-500.0,0.00016438,2]
[352118787,1738954253628,-421.73,0.00016438,2]
[352118789,1738954253637,-500.0,0.00016438,2]
[352118790,1738954253646,-1577.01,0.00016438,2]
[352118792,1738954253655,-500.0,0.00016438,2]
[352118793,1738954253664,-2494.97,0.00016438,2]
[352118795,1738954253673,-500.0,0.00016438,2]
[352118797,1738954253682,-2118.69,0.00016438,2]
[352118798,1738954253692,-500.0,0.00016438,2]
[352118800,1738954253701,-500.0,0.00016438,2]
[352118801,1738954253710,-500.0,0.00016438,2]
[352118803,1738954253720,-1243.0,0.00016438,2]
[352118805,1738954253730,-4544.73,0.00016438,2]
[352118806,1738954253739,-4210.11,0.00016438,2]
[352118808,1738954253749,-500.0,0.00016438,2]
[352118810,1738954253758,-500.0,0.00016438,2]
[352118811,1738954253771,-1038.18,0.00016438,2]
[352118813,1738954253781,-500.0,0.00016438,2]
[352118815,1738954253790,-2848.04,0.00016438,2]
[352118816,1738954253800,-500.0,0.00016438,2]
[352118818,1738954253811,-465.89,0.00016438,2]
[352118820,1738954253821,-500.0,0.00016438,2]
[352118822,1738954253830,-500.0,0.00016438,2]
[352118823,1738954253841,-500.0,0.00016438,2]
[352118825,1738954253851,-500.0,0.00016438,2]
[352118827,1738954253861,-821.17,0.00016438,2]
[352118828,1738954253870,-583.35427771,0.00016438,2]
[352118830,1738954253880,-1677.32,0.00016438,2]
[352118831,1738954253889,-500.0,0.00016438,2]
[352118833,1738954253899,-320.45364755,0.00016438,2]
[352118835,1738954253909,-500.0,0.00016438,2]
[352118836,1738954253918,-1493.44,0.00016438,2]
[352118838,1738954253928,-500.0,0.00016438,2]
[352118840,1738954253938,-543.13831268,0.00016438,2]
[352118842,1738954253947,-500.0,0.00016438,2]
[352118843,1738954253956,-500.0,0.00016438,2]
[352118845,1738954253966,-500.0,0.00016438,2]
[352118846,1738954253975,-500.0,0.00016438,2]
[352118848,1738954253984,-2790.87,0.00016438,2]
[352118850,1738954253994,-500.46247755,0.00016438,2]
[352118852,1738954254004,-500.0,0.00016438,2]
[352118853,1738954254013,-500.0,0.00016438,2]
[352118855,1738954254022,-500.0,0.00016438,2]
[352118857,1738954254031,-3737.48,0.00016438,2]
[352118859,1738954254040,-3430.89,0.00016438,2]
[352118860,1738954254049,-500.0,0.00016438,2]
[352118862,1738954254058,-500.0,0.00016438,2]
[352118864,1738954254070,-500.0,0.00016438,2]
[352118865,1738954254079,-500.0,0.00016438,2]
[352118867,1738954254088,-501.88732813,0.00016438,2]
[352118869,1738954254098,-500.0,0.00016438,2]
[352118871,1738954254108,-1079.71,0.00016438,2]
[352118872,1738954254118,-500.0,0.00016438,2]
[352118874,1738954254127,-500.0,0.00016438,2]
[352118876,1738954254136,-500.0,0.00016438,2]
[352118878,1738954254146,-501.46241001,0.00016438,2]
[352118880,1738954254155,-500.0,0.00016438,2]
[352118881,1738954254164,-500.0,0.00016438,2]
[352118883,1738954254173,-500.0,0.00016438,2]
[352118885,1738954254182,-835.62,0.00016438,2]
[352118887,1738954254191,-500.0,0.00016438,2]
[352118888,1738954254200,-500.0,0.00016438,2]
[352118890,1738954254210,-500.0,0.00016438,2]
[352118892,1738954254219,-1733.14,0.00016438,2]
[352118894,1738954254228,-500.0,0.00016438,2]
[352118895,1738954254237,-500.0,0.00016438,2]
[352118897,1738954254246,-582.31,0.00016438,2]
[352118899,1738954254255,-500.0,0.00016438,2]
[352118901,1738954254264,-537.85,0.00016438,2]
[352118902,1738954254273,-431.86851512,0.00016438,2]
[352118904,1738954254283,-500.0,0.00016438,2]
[352118906,1738954254292,-505.02792134,0.00016438,2]
[352118908,1738954254301,-500.0,0.00016438,2]
[352118909,1738954254311,-500.0,0.00016438,2]
[352118911,1738954254321,-1341.01,0.00016438,2]
[352118913,1738954254330,-500.0,0.00016438,2]
[352118915,1738954254339,-500.0,0.00016438,2]
[352118916,1738954254348,-381.23,0.00016438,2]
[352118918,1738954254357,-300.0,0.00016438,2]
[352118920,1738954254367,-500.0,0.00016441,2]
[352118922,1738954254376,-580.45527341,0.00016445,2]
[352118924,1738954254385,-173.34649049,0.00016445,2]
[352118925,1738954254394,-286.43229834,0.00016445,2]
[352118927,1738954254404,-254.97982236,0.00016457,2]
[352118929,1738954254413,-580.45527341,0.00016462,2]
[352118931,1738954254422,-173.34649049,0.00016462,2]
[352118932,1738954254431,-286.43229834,0.00016462,2]
[352118934,1738954254440,-150.0,0.00016467,2]
[352118936,1738954254449,-150.0,0.00016472,2]
[352118938,1738954254459,-531.73457586,0.00016473,2]
[352118939,1738954254468,-580.45527341,0.00016479,2]
[352118941,1738954254477,-173.34649049,0.00016479,2]
[352118943,1738954254486,-286.43229834,0.00016479,2]
[352118945,1738954254496,-5244509.94851578,0.0001648,2]
[352118946,1738954254505,-580.45527341,0.00016496,2]
[352118948,1738954254514,-173.34649049,0.00016496,2]
[352118950,1738954254523,-286.43229834,0.00016496,2]
[352118952,1738954254532,-1745.028722,0.000165,2]
[352118953,1738954254541,-1745.028722,0.000165,2]
[352118955,1738954254550,-1745.028722,0.000165,2]
[352118957,1738954254561,-479.269816,0.000165,2]
[352118959,1738954254570,-479.269816,0.000165,2]
[352118961,1738954254579,-479.269816,0.000165,2]
[352118963,1738954254587,-479.269816,0.000165,2]
[352118965,1738954254596,-151.0,0.000165,2]
[352118966,1738954254605,-151.0,0.000165,2]
[352118968,1738954254614,-481.822551,0.000165,2]
[352118970,1738954254623,-481.822551,0.000165,2]
[352118972,1738954254632,-481.822551,0.000165,2]
[352118974,1738954254640,-481.822551,0.000165,2]
[352118976,1738954254650,-151.0,0.000165,2]
[352118978,1738954254658,-151.0,0.000165,2]
[352118980,1738954254667,-151.0,0.000165,2]
[352118982,1738954254676,-151.0,0.000165,2]
[352118984,1738954254685,-151.0,0.000165,2]
[352118986,1738954254694,-151.0,0.000165,2]
[352118987,1738954254703,-151.0,0.000165,2]
[352118989,1738954254713,-151.0,0.000165,2]
[352118991,1738954254722,-151.0,0.000165,2]
[352118993,1738954254731,-151.0,0.000165,2]
[352118995,1738954254741,-151.0,0.000165,2]
[352118997,1738954254750,-151.0,0.000165,2]
[352118999,1738954254760,-151.0,0.000165,2]
[352119001,1738954254770,-151.0,0.000165,2]
[352119003,1738954254779,-151.0,0.000165,2]
[352119005,1738954254788,-151.0,0.000165,2]
[352119007,1738954254798,-151.0,0.000165,2]
[352119009,1738954254807,-151.0,0.000165,2]
[352119011,1738954254817,-151.0,0.000165,2]
[352119013,1738954254826,-151.0,0.000165,2]
[352119015,1738954254836,-151.0,0.000165,2]
[352119017,1738954254845,-151.0,0.000165,2]
[352119019,1738954254854,-151.0,0.000165,2]
[352119021,1738954254863,-151.0,0.000165,2]
[352119023,1738954254873,-956.814669,0.000165,2]
[352119025,1738954254882,-956.814669,0.000165,2]
[352119027,1738954254891,-151.0,0.000165,2]
[352119029,1738954254901,-174.246188,0.000165,2]
[352119030,1738954254910,-151.0,0.000165,2]
[352119031,1738954254919,-151.0,0.000165,2]
[352119032,1738954254928,-151.0,0.000165,2]
[352119033,1738954254937,-151.0,0.000165,2]
[352119034,1738954254946,-151.0,0.000165,2]
[352119035,1738954254955,-151.0,0.000165,2]
[352119036,1738954254964,-151.0,0.000165,2]
[352119037,1738954254972,-151.0,0.000165,2]
[352119038,1738954255124,-3365.898039,0.000165,2]
[352119039,1738954255134,-3365.898039,0.000165,2]
[352119040,1738954255144,-3365.898039,0.000165,2]
[352119041,1738954255154,-3365.898039,0.000165,2]
[352119042,1738954255163,-299.881877,0.000165,2]
[352119043,1738954255173,-151.0,0.000165,2]
[352119045,1738954255182,-151.0,0.000165,2]
[352119046,1738954255192,-151.0,0.000165,2]
[352119048,1738954255201,-151.0,0.000165,2]
[352119049,1738954255211,-366.0,0.000165,2]
[352119051,1738954255220,-746.0,0.000165,2]
[352119053,1738954255230,-231.0,0.000165,2]
[352119055,1738954255239,-150.0,0.00016503,2]
[352119057,1738954255248,-150.0,0.00016503,2]
[352119059,1738954255257,-150.0,0.00016506,2]
[352119061,1738954255267,-150.0,0.00016511,2]
[352119063,1738954255275,-580.45527341,0.00016513,2]
[352119065,1738954255285,-173.34649049,0.00016513,2]
[352119067,1738954255294,-286.43229834,0.00016513,2]
[352119069,1738954255303,-150.0,0.00016527,2]
[352119071,1738954255313,-580.45527341,0.00016529,2]
[352119073,1738954255322,-173.34649049,0.00016529,2]
[352119075,1738954255331,-286.43229834,0.00016529,2]
[352119077,1738954255340,-150.0,0.00016531,2]
[352119079,1738954255349,-150.0,0.00016532,2]
[352119081,1738954255359,-254.97982236,0.00016538,2]
[352119083,1738954255368,-150.0,0.00016541,2]
[352119085,1738954255378,-580.45527341,0.00016546,2]
[352119087,1738954255387,-173.34649049,0.00016546,2]
[352119089,1738954255396,-286.43229834,0.00016546,2]
[352119091,1738954255405,-150.0,0.00016551,2]
[352119093,1738954255414,-150.0,0.00016562,2]
[352119095,1738954255423,-580.45527341,0.00016563,2]
[352119097,1738954255433,-173.34649049,0.00016563,2]
[352119099,1738954255442,-286.43229834,0.00016563,2]
[352119101,1738954255451,-165741.87011907,0.0001657,2]
[352119103,1738954255460,-500.0,0.00016573,2]
[352119105,1738954255469,-500.0,0.00016573,2]
[352119107,1738954255478,-500.0,0.00016573,2]
[352119108,1738954255487,-500.0,0.00016573,2]
[352119110,1738954255496,-301.9881289,0.00016573,2]
[352119112,1738954255506,-500.0,0.00016573,2]
[352119114,1738954255515,-500.0,0.00016573,2]
[352119116,1738954255525,-500.0,0.00016575,2]
[352119118,1738954255534,-500.0,0.00016575,2]
[352119120,1738954255543,-500.0,0.00016575,2]
[352119122,1738954255553,-500.0,0.00016575,2]
[352119124,1738954255564,-500.0,0.00016575,2]
[352119126,1738954255573,-544.64241206,0.00016575,2]
[352119128,1738954255583,-500.0,0.00016575,2]
[352119130,1738954255592,-500.0,0.00016575,2]
[352119132,1738954255601,-500.0,0.00016575,2]
[352119134,1738954255610,-500.0,0.00016575,2]
[352119136,1738954255619,-1902.430245,0.00016575,2]
[352119138,1738954255628,-500.0,0.00016575,2]
[352119140,1738954255637,-500.0,0.00016575,2]
[352119142,1738954255647,-500.0,0.00016575,2]
[352119144,1738954255656,-500.0,0.00016575,2]
[352119146,1738954255665,-500.0,0.00016575,2]
[352119148,1738954255674,-500.0,0.00016575,2]
[352119150,1738954255683,-500.0,0.00016575,2]
[352119152,1738954255692,-2005.221222,0.00016575,2]
[352119154,1738954255701,-500.0,0.00016575,2]
[352119156,1738954255710,-500.0,0.00016575,2]
[352119158,1738954255720,-500.0,0.00016575,2]
[352119160,1738954255729,-500.0,0.00016575,2]
[352119162,1738954255738,-500.0,0.00016575,2]
[352119164,1738954255747,-197.8039958,0.00016575,2]
[352119166,1738954255756,-500.0,0.00016575,2]
[352119168,1738954255769,-500.0,0.00016575,2]
[352119170,1738954255779,-500.0,0.00016575,2]
[352119171,1738954255788,-500.0,0.00016575,2]
[352119174,1738954255799,-500.0,0.00016575,2]
[352119176,1738954255808,-500.0,0.00016575,2]
[352119178,1738954255822,-500.0,0.00016575,2]
[352119180,1738954255831,-500.0,0.00016575,2]
[352119182,1738954255842,-500.0,0.00016575,2]
[352119184,1738954255852,-500.0,0.00016575,2]
[352119186,1738954255861,-381.02015508,0.00016575,2]
[352119188,1738954255870,-500.0,0.00016575,2]
[352119189,1738954255880,-500.0,0.00016575,2]
[352119191,1738954255889,-500.0,0.00016575,2]
[352119192,1738954255898,-500.0,0.00016575,2]
[352119194,1738954255908,-500.0,0.00016575,2]
[352119196,1738954255918,-500.0,0.00016575,2]
[352119198,1738954255927,-500.0,0.00016575,2]
[352119200,1738954255936,-500.0,0.00016575,2]
[352119202,1738954255945,-500.0,0.00016575,2]
[352119204,1738954255955,-500.0,0.00016575,2]